bitfinex/quotes_BTCUSD_20241211
["timestamp","ask_amount","ask_price","bid_price","bid_amount"]
[1733946411509,7.76587883,101000.0,100990.0,1.08460524]
[1733946411749,7.76587883,101000.0,100990.0,0.96972324]
[1733946411968,7.74854883,101000.0,100990.0,3.06552587]
[1733946412187,7.74161683,101000.0,100990.0,3.06552587]
[1733946412393,7.74161683,101000.0,100990.0,3.02732724]
[1733946413467,7.74161683,101000.0,100990.0,2.92732724]
[1733946413675,7.74161683,101000.0,100990.0,2.49277524]
[1733946414311,7.67261682,101000.0,100990.0,2.49277524]
[1733946416243,7.67261682,101000.0,100990.0,2.49275401]
[1733946419325,7.60361681,101000.0,100990.0,2.49275401]
[1733946421709,7.60361681,101000.0,100990.0,2.59275401]
[1733946422363,7.59244663,101000.0,100990.0,2.59275401]
[1733946422614,7.59244663,101000.0,100990.0,2.68871979]
[1733946422615,7.53980412,101000.0,100990.0,2.68871979]
[1733946422815,7.53980412,101000.0,100990.0,2.65239558]
[1733946423662,7.53980412,101000.0,100990.0,2.61419695]
[1733946424296,7.47080411,101000.0,100990.0,2.61419695]
[1733946426410,7.45809114,101000.0,100990.0,2.61419695]
[1733946427695,7.45250144,101000.0,100990.0,2.61419695]
[1733946428380,7.45250144,101000.0,100990.0,2.31760962]
[1733946429213,7.38350143,101000.0,100990.0,2.31760962]
[1733946429441,7.22998365,101000.0,100990.0,2.31760962]
[1733946429660,7.22998365,101000.0,100990.0,0.86789645]
[1733946429843,7.18302405,101000.0,100990.0,2.82550045]
[1733946430106,7.17548718,101000.0,100990.0,2.78917624]
[1733946430530,7.12610128,101000.0,100990.0,2.78917624]
[1733946430795,7.09310284,101000.0,100990.0,2.75216162]
[1733946431010,7.07771121,101000.0,100990.0,2.75216162]
[1733946431769,7.07363005,101000.0,100990.0,2.75216162]
[1733946432009,7.06807229,101000.0,100990.0,2.75216162]
[1733946432403,7.05272729,101000.0,100990.0,2.75216162]
[1733946432604,7.03737098,101000.0,100990.0,2.75216162]
[1733946432861,6.92620384,101000.0,100990.0,2.75216162]
[1733946433075,6.92620384,101000.0,100990.0,2.78848583]
[1733946433721,6.90968367,101000.0,100990.0,2.78917624]
[1733946434338,6.90968367,101000.0,100990.0,2.75216162]
[1733946434339,6.82523242,101000.0,100990.0,2.75216162]
[1733946434974,6.81783068,101000.0,100990.0,2.75216162]
[1733946437788,6.86763068,101000.0,100990.0,2.75216162]
[1733946439344,6.79863067,101000.0,100990.0,2.75216162]
[1733946439590,6.87363067,101000.0,100990.0,0.72171468]
[1733946440852,6.87363067,101000.0,100990.0,0.89471468]
[1733946443060,6.87363067,101000.0,100990.0,0.50011468]
[1733946444398,6.80463066,101000.0,100990.0,0.50011468]
[1733946445081,6.80463066,101000.0,100990.0,0.67311468]
[1733946445511,6.80463066,101000.0,100990.0,0.96925438]
[1733946445938,6.80463066,101000.0,100990.0,2.92685838]
[1733946446635,6.80463066,101000.0,100990.0,2.73071868]
[1733946446636,6.78966066,101000.0,100990.0,2.73071868]
[1733946447069,6.78966066,101000.0,100990.0,3.02685434]
[1733946447504,6.78966066,101000.0,100990.0,2.73071868]
[1733946449272,6.72066065,101000.0,100990.0,2.73071868]
[1733946451740,6.72066065,101000.0,100990.0,1.06828168]
[1733946452268,6.72066065,101000.0,100990.0,1.36441343]
[1733946452782,6.72066065,101000.0,100990.0,1.21828168]
[1733946453028,6.72066065,101000.0,100990.0,1.34128168]
[1733946453276,6.71187365,101000.0,100990.0,1.36272462]
[1733946454091,6.56976965,101000.0,100990.0,1.39848873]
[1733946454325,6.50046564,101000.0,100990.0,1.86696442]
[1733946454570,6.50046564,101000.0,100990.0,2.34152962]
[1733946454856,6.50046564,101000.0,100990.0,2.30576551]
[1733946455114,6.50046564,101000.0,100990.0,2.26709413]
[1733946455347,6.49446564,101000.0,100990.0,2.26609413]
[1733946455868,6.49446564,101000.0,100990.0,1.79252893]
[1733946456142,6.49446564,101000.0,100990.0,1.79152893]
[1733946456441,6.48646564,101000.0,100990.0,1.79152893]
[1733946456869,6.48946564,101000.0,100990.0,1.79152893]
[1733946457416,6.48646564,101000.0,100990.0,1.79152893]
[1733946457675,6.48946564,101000.0,100990.0,1.79152893]
[1733946459407,6.42046563,101000.0,100990.0,1.79152893]
[1733946462057,6.54726563,101000.0,100990.0,1.08872462]
[1733946462273,6.54726563,101000.0,100990.0,0.52055762]
[1733946462490,6.54726563,101000.0,100990.0,2.57816162]
[1733946462933,6.54726563,101000.0,100990.0,2.61163406]
[1733946463159,6.54726563,101000.0,100990.0,2.57816162]
[1733946463366,6.54726563,101000.0,100990.0,2.54987862]
[1733946464255,6.47826562,101000.0,100990.0,2.54987862]
[1733946465122,6.47536041,101000.0,100990.0,2.57287862]
[1733946465331,6.47536041,101000.0,100990.0,2.47287862]
[1733946465789,6.47536041,101000.0,100990.0,2.45143568]
[1733946470445,6.4063604,101000.0,100990.0,2.45143568]
[1733946472961,6.4063604,101000.0,100990.0,0.67211468]
[1733946473201,6.4063604,101000.0,100990.0,2.62971868]
[1733946473739,6.4063604,101000.0,100990.0,2.47971868]
[1733946473995,6.4063604,101000.0,100990.0,2.62971868]
[1733946474304,6.4063604,101000.0,100990.0,0.37211468]
[1733946474572,6.4063604,101000.0,100990.0,0.81750368]
[1733946474573,6.33736039,101000.0,100990.0,0.81750368]
[1733946475093,6.33436039,101000.0,100990.0,0.81750368]
[1733946475362,6.33736039,101000.0,100990.0,0.96650368]
[1733946475605,6.33736039,101000.0,100990.0,0.97050368]
[1733946475853,6.33436039,101000.0,100990.0,1.11650368]
[1733946476113,6.34736039,101000.0,100990.0,1.11850368]
[1733946476597,6.34736039,101000.0,100990.0,0.96850368]
[1733946478208,6.34736039,101000.0,100990.0,0.50011468]
[1733946479256,6.27836038,101000.0,100990.0,0.50011468]
[1733946479449,6.27836038,101000.0,100990.0,0.52311468]
[1733946484343,6.20936037,101000.0,100990.0,0.52311468]
[1733946489293,6.14036036,101000.0,100990.0,0.52311468]
[1733946494378,6.07136035,101000.0,100990.0,0.52311468]
[1733946496566,6.05155835,101000.0,100990.0,2.48071868]
[1733946496783,5.97235035,101000.0,100990.0,2.73071868]
[1733946496986,5.93829336,101000.0,100990.0,2.73071868]
[1733946497819,5.93829336,101000.0,100990.0,2.48071868]
[1733946498030,5.93829336,101000.0,100990.0,2.05173168]
[1733946498674,5.93829336,101000.0,100990.0,2.00225068]
[1733946499078,5.93829336,101000.0,100990.0,1.65353768]
[1733946499287,5.86929335,101000.0,100990.0,1.65353768]
[1733946499697,5.86929335,101000.0,100990.0,2.48071868]
[1733946500750,5.86929335,101000.0,100990.0,2.63071868]
[1733946501169,5.86929335,101000.0,100990.0,2.48071868]
[1733946503080,5.86929335,101000.0,100990.0,0.65083268]
[1733946504345,5.80029334,101000.0,100990.0,0.65083268]
[1733946507517,5.80029334,101000.0,100990.0,2.48071868]
[1733946507734,5.80029334,101000.0,100990.0,0.37311468]
[1733946508191,5.80029334,101000.0,100990.0,1.37311468]
[1733946508398,5.80029334,101000.0,100990.0,1.35011468]
[1733946509061,5.80029334,101000.0,100990.0,1.50011468]
[1733946509263,5.73129333,101000.0,100990.0,3.45771868]
[1733946509883,5.73129333,101000.0,100990.0,3.48071868]
[1733946510292,5.73129333,101000.0,100990.0,2.66979968]
[1733946513186,5.73129333,101000.0,100990.0,2.68460398]
[1733946514180,5.66229332,101000.0,100990.0,2.68460398]
[1733946516791,5.66229332,101000.0,100990.0,2.86905638]
[1733946516992,5.66229332,101000.0,100990.0,2.90380934]
[1733946517425,5.66229332,101000.0,100990.0,2.83460398]
[1733946518530,5.66229332,101000.0,100990.0,2.93460398]
[1733946518733,5.66229332,101000.0,100990.0,1.93460398]
[1733946519321,5.59329331,101000.0,100990.0,1.93460398]
[1733946520784,5.59329331,101000.0,100990.0,0.78791898]
[1733946521270,5.59329331,101000.0,100990.0,2.74552298]
[1733946523571,5.54589331,101000.0,100990.0,2.77997538]
[1733946523795,5.46649331,101000.0,100990.0,2.77997538]
[1733946524002,5.46649331,101000.0,100990.0,2.81472834]
[1733946524211,5.46649331,101000.0,100990.0,2.86433631]
[1733946524426,5.3974933,101000.0,100990.0,2.86433631]
[1733946525262,5.3974933,101000.0,100990.0,2.86233631]
[1733946525263,5.3844933,101000.0,100990.0,2.86233631]
[1733946525669,5.3844933,101000.0,100990.0,2.86333631]
[1733946526683,5.3874933,101000.0,100990.0,2.86333631]
[1733946527094,5.3844933,101000.0,100990.0,2.86333631]
[1733946527305,5.3874933,101000.0,100990.0,2.86333631]
[1733946530426,5.31849329,101000.0,100990.0,2.86333631]
[1733946532527,5.29943028,101000.0,100990.0,2.86333631]
[1733946532762,5.29293328,101000.0,100990.0,2.86333631]
[1733946532972,5.26970353,101000.0,100990.0,2.86333631]
[1733946534414,5.20070352,101000.0,100990.0,2.86333631]
[1733946534640,5.20070352,101000.0,100990.0,2.82858335]
[1733946537393,5.19944087,101000.0,100990.0,2.79413095]
[1733946537660,5.19432538,101000.0,100990.0,2.82858335]
[1733946539204,5.12532537,101000.0,100990.0,2.82858335]
[1733946539414,5.12532537,101000.0,100990.0,0.87097935]
[1733946539605,5.12532537,101000.0,100990.0,2.82858335]
[1733946539758,5.12532537,101000.0,100990.0,2.79413095]
[1733946541604,4.55259022,101000.0,100990.0,2.86171762]
[1733946541808,4.38105199,101000.0,100990.0,3.26171762]
[1733946542044,4.24435527,101000.0,100990.0,3.26171762]
[1733946542621,4.21892327,101000.0,100990.0,3.26171762]
[1733946542806,4.07573337,101000.0,100990.0,3.41171762]
[1733946543064,4.07573337,101000.0,100990.0,3.31150917]
[1733946543065,2.63584271,101000.0,100990.0,3.31150917]
[1733946543312,2.14908382,101020.0,101010.0,0.97144294]
[1733946543521,1.88156599,101020.0,101010.0,1.4973696]
[1733946543731,0.500222,101030.0,101020.0,0.72144294]
[1733946543943,0.49247,101030.0,101020.0,1.35291082]
[1733946544158,0.49047,101030.0,101020.0,1.50291082]
[1733946544389,0.42146999,101030.0,101020.0,1.46833944]
[1733946544613,0.15184917,101030.0,101020.0,1.45641082]
[1733946544815,0.1508073,101030.0,101020.0,1.45641082]
[1733946545029,0.1508073,101030.0,101020.0,1.55671927]
[1733946545246,0.1508073,101030.0,101020.0,2.13914789]
[1733946545475,0.1508073,101030.0,101020.0,2.71214789]
[1733946545715,0.003712,101040.0,101030.0,0.44444294]
[1733946545929,2.239644,101060.0,101050.0,0.423]
[1733946546179,2.239644,101060.0,101050.0,0.97958345]
[1733946546393,2.318844,101060.0,101050.0,0.95361875]
[1733946546614,2.367844,101060.0,101050.0,0.80361875]
[1733946546859,2.49640106,101060.0,101050.0,0.3195522]
[1733946547067,0.1282,101030.0,101020.0,0.11226611]
[1733946547285,0.1282,101030.0,101020.0,0.1761241]
[1733946547530,0.1282,101030.0,101020.0,0.4143172]
[1733946547749,0.1282,101030.0,101020.0,0.1671241]
[1733946547970,0.12855706,101000.0,100990.0,8.59e-05]
[1733946548178,0.25315706,101000.0,100990.0,0.34818339]
[1733946549235,0.18415705,101000.0,100990.0,0.49818339]
[1733946549446,0.05559999,101000.0,100990.0,0.35218339]
[1733946549680,0.05559999,101000.0,100990.0,0.80845839]
[1733946550747,0.05559999,101000.0,100990.0,0.98145839]
[1733946550958,0.05559999,101000.0,100990.0,0.68630139]
[1733946551170,0.18415705,101000.0,100990.0,0.50618339]
[1733946553962,0.05559999,101000.0,100990.0,0.50618339]
[1733946554172,0.18415705,101000.0,100990.0,0.96245839]
[1733946554382,0.11515704,101010.0,101000.0,0.15]
[1733946554619,0.11515704,101020.0,101000.0,0.80658345]
[1733946554835,0.11515704,101020.0,101010.0,0.25030845]
[1733946555047,0.01421828,101030.0,101020.0,0.15]
[1733946555274,0.12937532,101030.0,101020.0,0.25030845]
[1733946555484,0.01421828,101030.0,101020.0,0.25030845]
[1733946555900,0.01421828,101030.0,101020.0,0.10030845]
[1733946557390,0.13811828,101030.0,101020.0,0.10030845]
[1733946557591,0.13911828,101030.0,101020.0,0.10930845]
[1733946558027,0.13911828,101030.0,101020.0,0.11630845]
[1733946558150,0.13907828,101030.0,101020.0,0.11630845]
[1733946558771,0.11515704,101020.0,101000.0,0.1]
[1733946558955,0.11515704,101020.0,101000.0,0.2471969]
[1733946559181,0.18523531,101030.0,101000.0,0.2471969]
[1733946559416,0.04615703,101020.0,101000.0,0.2471969]
[1733946559620,0.04615703,101020.0,100990.0,0.39785134]
[1733946561078,0.04715703,101020.0,101000.0,0.009]
[1733946561470,0.04715703,101020.0,101000.0,0.005]
[1733946561674,0.04715703,101020.0,101010.0,0.10030845]
[1733946561847,0.05115703,101020.0,101010.0,0.34752275]
[1733946562050,0.04732903,101020.0,101010.0,0.34752275]
[1733946562366,0.04832903,101020.0,101010.0,0.34752275]
[1733946562568,0.04732903,101020.0,101010.0,0.34752275]
[1733946562773,0.04632903,101020.0,101010.0,0.34752275]
[1733946562930,0.04732903,101020.0,101010.0,0.34752275]
[1733946563363,0.04732903,101020.0,101010.0,0.80379775]
[1733946564265,0.1164073,101030.0,101010.0,0.80379775]
[1733946564488,0.1164073,101030.0,101010.0,0.34752275]
[1733946564836,0.001,101020.0,101010.0,0.35652275]
[1733946565047,0.001,101020.0,101010.0,0.81279775]
[1733946565533,0.13148561,101030.0,101010.0,0.80879775]
[1733946565717,0.13248561,101030.0,101010.0,0.35952275]
[1733946566145,0.13148561,101030.0,101010.0,0.35452275]
[1733946566369,0.001,101020.0,101010.0,0.35952275]
[1733946566576,0.001,101020.0,101010.0,0.35951805]
[1733946566780,0.05598561,101030.0,101010.0,0.35451805]
[1733946566985,0.0764,101020.0,101010.0,0.10030845]
[1733946567194,0.0764,101020.0,101010.0,0.34752395]
[1733946567653,0.0764,101020.0,101010.0,0.10830845]
[1733946568065,0.0764,101020.0,101010.0,0.11730845]
[1733946568507,0.0764,101020.0,101010.0,0.017]
[1733946568713,0.0764,101020.0,101010.0,0.008]
[1733946568917,0.0774,101020.0,101010.0,0.017]
[1733946569346,0.00839999,101020.0,101010.0,0.017]
[1733946573425,0.00839999,101020.0,101010.0,0.017172]
[1733946574244,0.00839999,101020.0,101010.0,0.11748045]
[1733946574455,0.68277517,101040.0,101010.0,0.11748045]
[1733946574703,0.69643384,101040.0,101010.0,0.11748045]
[1733946575331,0.69643384,101040.0,101010.0,0.10848045]
[1733946575533,0.16365867,101040.0,101010.0,0.10848045]
[1733946575746,0.16465867,101040.0,101010.0,0.11648045]
[1733946576516,0.16465867,101040.0,101010.0,0.10848045]
[1733946576894,0.16465867,101040.0,101010.0,0.10948045]
[1733946577266,0.0784,101030.0,101010.0,0.10948045]
[1733946578054,0.0784,101030.0,101010.0,0.10048045]
[1733946578288,0.21015867,101040.0,101010.0,0.005172]
[1733946578289,0.2255,101020.0,101010.0,0.005172]
[1733946578486,0.0755,101020.0,101010.0,0.014172]
[1733946578917,0.151,101030.0,101010.0,0.51170705]
[1733946578918,0.0765,101030.0,101010.0,0.51170705]
[1733946579125,0.0765,101030.0,101010.0,0.26448045]
[1733946579318,0.00749999,101030.0,101010.0,0.26448045]
[1733946579520,0.00749999,101030.0,101010.0,0.25948045]
[1733946579721,0.00749999,101030.0,101020.0,0.10030845]
[1733946579945,0.06015867,101040.0,101020.0,0.49750825]
[1733946580149,0.01365867,101040.0,101030.0,0.15]
[1733946580390,2.289544,101060.0,101030.0,0.25030845]
[1733946580592,2.289544,101060.0,101040.0,0.10030845]
[1733946581417,2.289544,101060.0,101040.0,0.10085809]
[1733946582075,2.290544,101060.0,101040.0,0.10985809]
[1733946582482,2.366044,101060.0,101040.0,0.10985809]
[1733946582687,2.37960227,101060.0,101040.0,0.10985809]
[1733946583898,2.37960227,101060.0,101040.0,0.11485809]
[1733946584329,2.31060226,101060.0,101040.0,0.11485809]
[1733946586232,2.46060226,101060.0,101040.0,0.01454964]
[1733946587629,2.99340226,101060.0,101040.0,0.01454964]
[1733946589228,0.15,101050.0,101040.0,0.01454964]
[1733946590169,0.15,101050.0,101040.0,0.00054964]
[1733946590372,0.15,101050.0,101040.0,0.00954964]
[1733946590373,0.08199999,101050.0,101040.0,0.00954964]
[1733946590571,0.08199999,101050.0,101040.0,0.01854964]
[1733946591278,0.08099999,101050.0,101040.0,0.00054964]
[1733946591519,0.08099999,101050.0,101040.0,0.00154964]
[1733946592796,0.08099999,101050.0,101040.0,0.00054964]
[1733946593230,0.08199999,101050.0,101040.0,0.00854964]
[1733946593646,0.08099999,101050.0,101040.0,0.00154964]
[1733946593838,0.08099999,101050.0,101040.0,0.00854964]
[1733946594035,0.08199999,101050.0,101040.0,0.00854964]
[1733946594245,0.01299998,101050.0,101040.0,0.00854964]
[1733946594631,0.54579998,101050.0,101040.0,0.00854964]
[1733946594834,0.01199998,101040.0,101010.0,0.082872]
[1733946595198,0.01199998,101040.0,101020.0,0.15]
[1733946596510,0.01299998,101040.0,101020.0,0.15]
[1733946596842,0.01199998,101040.0,101020.0,0.155]
[1733946597267,0.01299998,101040.0,101020.0,0.159]
[1733946597697,0.01199998,101040.0,101020.0,0.151]
[1733946597856,0.01299998,101040.0,101020.0,0.158]
[1733946599297,0.65597936,101050.0,101020.0,0.158]
[1733946599495,0.64430842,101040.0,101020.0,0.008]
[1733946600193,0.64430842,101040.0,101020.0,0.001]
[1733946600399,0.64430842,101040.0,101020.0,0.005]
[1733946600543,0.74840842,101040.0,101020.0,0.005]
[1733946600847,0.94636042,101040.0,101020.0,0.001]
[1733946601247,0.94736042,101040.0,101020.0,0.008]
[1733946601524,0.74940842,101040.0,101020.0,0.008]
[1733946601727,0.64530842,101040.0,101020.0,0.008]
[1733946602757,0.22450845,101040.0,101020.0,0.008]
[1733946603778,0.1242,101040.0,101020.0,0.008]
[1733946603972,0.1242,101040.0,101020.0,0.091]
[1733946603973,0.001,101040.0,101020.0,0.091]
[1733946604176,0.4768,101050.0,101030.0,0.10030845]
[1733946604392,0.41177093,101050.0,101030.0,0.10030845]
[1733946604646,0.41177093,101050.0,101040.0,0.15]
[1733946605867,0.41177093,101050.0,101040.0,0.155]
[1733946606214,0.41177093,101050.0,101030.0,0.01379092]
[1733946606790,0.41277093,101050.0,101040.0,0.008]
[1733946607202,0.41177093,101050.0,101030.0,0.01379092]
[1733946607341,0.41566459,101050.0,101030.0,0.02179092]
[1733946607526,0.41575059,101050.0,101030.0,0.02679092]
[1733946608391,0.41575059,101050.0,101030.0,0.17679092]
[1733946608611,0.00397966,101050.0,101030.0,0.17679092]
[1733946608948,2.09268192,101060.0,101030.0,0.17679092]
[1733946609156,2.09268192,101060.0,101030.0,0.16879092]
[1733946609361,2.02368191,101060.0,101030.0,0.16879092]
[1733946609597,0.001,101050.0,101040.0,0.008]
[1733946609825,0.001,101050.0,101040.0,0.012]
[1733946610041,2.02368191,101060.0,101040.0,0.004]
[1733946610284,2.02368191,101060.0,101030.0,0.16379092]
[1733946610522,2.02368191,101060.0,101040.0,0.0801]
[1733946610726,2.02368191,101060.0,101040.0,0.18040845]
[1733946610932,2.02368191,101060.0,101050.0,0.25030845]
[1733946612199,2.02368191,101060.0,101050.0,0.25085863]
[1733946613279,2.02368191,101060.0,101050.0,0.26885863]
[1733946613659,2.02368191,101060.0,101050.0,0.39215863]
[1733946614313,1.9546819,101060.0,101050.0,0.39215863]
[1733946615349,1.94112363,101060.0,101050.0,0.54215863]
[1733946615560,1.94112363,101060.0,101050.0,0.99843363]
[1733946616387,1.84217363,101060.0,101050.0,1.15584575]
[1733946616590,1.84217363,101060.0,101050.0,1.30584575]
[1733946616802,1.84217363,101060.0,101050.0,1.27143363]
[1733946618272,1.37977363,101060.0,101050.0,1.48558211]
[1733946618479,1.25777363,101060.0,101050.0,1.24797393]
[1733946618667,1.25777363,101060.0,101050.0,1.64797393]
[1733946618902,1.25777363,101060.0,101050.0,1.79797393]
[1733946619115,1.25777363,101060.0,101050.0,1.77997393]
[1733946619343,1.18877362,101060.0,101050.0,1.62997393]
[1733946619565,1.14137082,101060.0,101050.0,1.63397393]
[1733946619780,1.11429063,101060.0,101050.0,1.65091783]
[1733946619966,0.63060844,101060.0,101050.0,1.94691783]
[1733946620235,0.63060844,101060.0,101050.0,1.06122601]
[1733946620469,0.63060844,101060.0,101050.0,1.3611669]
[1733946620690,0.63060844,101060.0,101050.0,1.36122601]
[1733946620903,0.61981542,101060.0,101050.0,1.36122601]
[1733946621090,0.61981542,101060.0,101050.0,0.84620008]
[1733946621327,0.61981542,101060.0,101050.0,1.30247508]
[1733946621544,0.61981542,101060.0,101050.0,1.15247508]
[1733946621729,0.61981542,101060.0,101050.0,1.10730563]
[1733946622432,0.61981542,101060.0,101050.0,0.95730563]
[1733946622643,0.61981542,101060.0,101050.0,0.96630563]
[1733946622850,0.61981542,101060.0,101050.0,0.95730563]
[1733946623708,0.61981542,101060.0,101050.0,0.70730563]
[1733946623924,0.61981542,101060.0,101050.0,0.25103063]
[1733946624334,0.55081541,101060.0,101050.0,0.10103063]
[1733946624590,0.55081541,101060.0,101050.0,0.25103063]
[1733946625663,0.55081541,101060.0,101050.0,0.40103063]
[1733946625872,0.55081541,101060.0,101050.0,0.41003063]
[1733946626088,0.55181541,101060.0,101050.0,0.41003063]
[1733946626474,0.55181541,101060.0,101050.0,0.26903063]
[1733946627584,0.62871541,101060.0,101050.0,0.01872218]
[1733946628668,0.62871541,101060.0,101050.0,0.11903063]
[1733946628876,0.62871541,101060.0,101050.0,0.26903063]
[1733946629296,0.5597154,101060.0,101050.0,0.26903063]
[1733946629520,0.5597154,101060.0,101050.0,0.41903063]
[1733946629733,0.5597154,101060.0,101050.0,0.87530563]
[1733946630380,0.4828154,101060.0,101050.0,0.97530563]
[1733946630591,0.4005664,101060.0,101050.0,1.12530563]
[1733946631034,0.3999454,101060.0,101050.0,1.12530563]
[1733946631262,0.3987034,101060.0,101050.0,1.12530563]
[1733946631687,0.3987034,101060.0,101050.0,0.69203063]
[1733946631901,0.3987034,101060.0,101050.0,1.14830563]
[1733946632745,0.3977034,101060.0,101050.0,1.13930563]
[1733946632956,0.3977034,101060.0,101050.0,1.14430563]
[1733946633598,0.3977034,101060.0,101050.0,1.13030563]
[1733946633832,0.4047034,101060.0,101050.0,1.13130563]
[1733946634048,0.4047034,101060.0,101050.0,1.14030563]
[1733946634258,0.33570339,101060.0,101050.0,1.14030563]
[1733946634465,0.33570339,101060.0,101050.0,1.13130563]
[1733946635166,0.33570339,101060.0,101050.0,1.13230563]
[1733946635795,0.33419739,101060.0,101050.0,1.13230563]
[1733946636013,0.33118539,101060.0,101050.0,0.87445763]
[1733946636235,0.33118539,101060.0,101050.0,1.02445763]
[1733946637696,0.27181539,101060.0,101050.0,1.02445763]
[1733946638125,0.27181539,101060.0,101050.0,0.40303063]
[1733946638336,0.39651539,101060.0,101050.0,0.10303063]
[1733946639361,0.32751538,101060.0,101050.0,0.10303063]
[1733946639567,0.32751538,101060.0,101050.0,0.25303063]
[1733946640598,0.32751538,101060.0,101050.0,0.10303063]
[1733946641467,0.32051538,101060.0,101050.0,0.10103063]
[1733946641682,0.32051538,101060.0,101050.0,0.11903063]
[1733946641894,0.31551538,101060.0,101050.0,0.11903063]
[1733946642316,0.31551538,101060.0,101050.0,0.26903063]
[1733946643152,0.33241119,101060.0,101050.0,0.26903063]
[1733946643358,0.31551538,101060.0,101050.0,0.41903063]
[1733946643565,0.31551538,101060.0,101050.0,0.87530563]
[1733946643773,0.31551538,101060.0,101050.0,0.87480563]
[1733946644399,0.24651537,101060.0,101050.0,0.86580563]
[1733946644812,0.24651537,101060.0,101050.0,0.85680563]
[1733946645025,0.24751537,101060.0,101050.0,0.85680563]
[1733946645229,0.24851537,101060.0,101050.0,0.85680563]
[1733946646481,0.24851537,101060.0,101050.0,0.25053063]
[1733946647528,0.24651537,101060.0,101050.0,0.25053063]
[1733946647949,0.24751537,101060.0,101050.0,0.25953063]
[1733946648164,0.24851537,101060.0,101050.0,0.26853063]
[1733946649798,0.24851537,101060.0,101050.0,0.01822218]
[1733946650434,0.17951536,101060.0,101050.0,0.01822218]
[1733946650848,0.17951536,101060.0,101050.0,0.36566053]
[1733946651060,0.17951536,101060.0,101050.0,0.51566053]
[1733946651478,0.17951536,101060.0,101050.0,1.12193553]
[1733946651680,0.13411536,101060.0,101050.0,1.22001217]
[1733946651884,0.0477,101080.0,101060.0,0.15]
[1733946652094,0.0477,101080.0,101060.0,0.25030845]
[1733946652935,0.0477,101080.0,101070.0,0.41997345]
[1733946653143,0.0477,101080.0,101070.0,0.81701545]
[1733946653358,0.0477,101080.0,101070.0,0.74985945]
[1733946653575,0.0487,101080.0,101070.0,0.74985945]
[1733946654185,0.0477,101080.0,101070.0,0.75485945]
[1733946654403,0.001,101080.0,101070.0,0.76285945]
[1733946655028,0.0839,101080.0,101070.0,0.76285945]
[1733946655645,0.0839,101080.0,101070.0,0.51035045]
[1733946655854,0.0839,101080.0,101070.0,0.410042]
[1733946656062,0.083986,101080.0,101070.0,0.013]
[1733946657321,0.129986,101080.0,101070.0,0.013]
[1733946657739,0.53609445,101080.0,101050.0,0.000172]
[1733946657943,0.22700845,101070.0,101050.0,0.000172]
[1733946658150,0.0807,101060.0,101050.0,0.000172]
[1733946658359,0.0807,101060.0,101050.0,0.2472964]
[1733946659366,0.01169999,101060.0,101050.0,0.2472964]
[1733946659620,0.01169999,101060.0,101050.0,0.2512964]
[1733946659875,0.01169999,101060.0,101050.0,0.004172]
[1733946659876,0.15800844,101060.0,101050.0,0.004172]
[1733946660173,0.15800844,101060.0,101050.0,0.000172]
[1733946660391,0.15800844,101060.0,101050.0,0.007172]
[1733946660641,0.15900844,101060.0,101050.0,0.004172]
[1733946661185,0.59270844,101060.0,101050.0,0.000172]
[1733946661452,0.046,101040.0,101020.0,0.000172]
[1733946661681,0.046,101040.0,101020.0,0.00072266]
[1733946662425,0.0807,101030.0,101020.0,0.00072266]
[1733946662678,0.0807,101030.0,101020.0,0.24790656]
[1733946662929,0.0807,101030.0,101020.0,0.40190656]
[1733946663460,0.1267,101040.0,101030.0,0.15]
[1733946663697,0.4117,101050.0,101030.0,0.15]
[1733946663698,0.4117,101050.0,101030.0,0.25030845]
[1733946664552,0.34269999,101050.0,101030.0,0.25030845]
[1733946664823,0.001,101040.0,101030.0,0.25730845]
[1733946665656,0.001,101040.0,101030.0,0.26130845]
[1733946665657,0.002,101040.0,101030.0,0.26130845]
[1733946666158,0.14259752,101060.0,101030.0,0.25030845]
[1733946666394,0.001,101040.0,101030.0,0.26130845]
[1733946666705,0.001,101040.0,101030.0,0.25430845]
[1733946666935,0.002,101040.0,101030.0,0.86758345]
[1733946667223,0.001,101040.0,101030.0,1.10658345]
[1733946667516,0.1277,101060.0,101040.0,0.15]
[1733946667788,0.1277,101060.0,101050.0,0.25030845]
[1733946667789,0.001,101060.0,101050.0,0.25030845]
[1733946668557,0.001086,101060.0,101050.0,0.25030845]
[1733946668825,8.6e-05,101060.0,101050.0,0.25030845]
[1733946669554,0.02410664,101070.0,101050.0,0.25030845]
[1733946669808,0.001,101060.0,101050.0,0.25430845]
[1733946670312,0.001,101060.0,101050.0,0.25830845]
[1733946670564,0.0112515,101060.0,101050.0,0.25030845]
[1733946671556,0.0112515,101060.0,101050.0,0.25430845]
[1733946671810,0.0112515,101060.0,101050.0,0.25830845]
[1733946672063,0.0112515,101060.0,101050.0,0.158]
[1733946672311,0.0578515,101060.0,101050.0,0.004]
[1733946672572,0.1347515,101060.0,101050.0,0.008]
[1733946672820,0.1357515,101060.0,101050.0,0.008]
[1733946673074,0.60175995,101060.0,101050.0,0.008]
[1733946673616,0.60075995,101060.0,101050.0,0.004]
[1733946673861,0.60075995,101060.0,101030.0,0.000172]
[1733946674396,0.53175994,101060.0,101030.0,0.000172]
[1733946674934,0.53275994,101060.0,101050.0,0.004]
[1733946675486,0.023,101050.0,101030.0,0.000172]
[1733946675740,0.12330845,101050.0,101030.0,0.004172]
[1733946676002,0.10030845,101040.0,101030.0,0.004172]
[1733946676276,0.10030845,101040.0,101030.0,0.000172]
[1733946676855,0.10030845,101040.0,101030.0,0.004172]
[1733946677139,0.10030845,101040.0,101030.0,0.000172]
[1733946677429,0.22160845,101040.0,101030.0,0.004172]
[1733946678240,0.22260845,101040.0,101030.0,0.008172]
[1733946678749,0.22260845,101040.0,101030.0,0.00110555]
[1733946678976,0.24560845,101040.0,101030.0,0.00110555]
[1733946679410,0.17660844,101040.0,101030.0,0.00110555]
[1733946680590,0.17660844,101040.0,101030.0,1.00110555]
[1733946683628,0.86724944,101040.0,101030.0,0.92906534]
[1733946683854,0.86724944,101040.0,101030.0,0.91353277]
[1733946684372,0.89855788,101040.0,101030.0,0.91353277]
[1733946684649,0.89755788,101040.0,101030.0,0.91353277]
[1733946685185,0.89855788,101040.0,101030.0,0.88062277]
[1733946685686,0.89955788,101040.0,101030.0,0.88062277]
[1733946686434,0.89955788,101040.0,101030.0,0.08616277]
[1733946686932,0.55685788,101040.0,101030.0,0.08616277]
[1733946687669,0.65371398,101040.0,101030.0,0.08616277]
[1733946687934,0.129,101020.0,100990.0,8.59e-05]
[1733946688199,0.23130845,101040.0,101000.0,0.10030845]
[1733946688447,0.23130845,101040.0,101000.0,0.43146513]
[1733946688448,0.002,101040.0,101000.0,0.43146513]
[1733946688699,0.08548957,101040.0,101000.0,0.10030845]
[1733946688959,0.08348957,101040.0,101000.0,0.10030845]